{"text_format":"1","workbook":"xlsx","n_sheets":1,"sheets":["BLANK PRICE fcx_tw_20_03"],"not_rendered":{"charts":0,"images":0,"macros":1,"external_links":0,"defined_names":0,"comments":0,"pivot_tables":0},"unopened":[],"bounds":{"document_bytes":16777216,"sheet_cells":100000,"rows_first":2000,"rows_last":500,"rows_between":2000,"halvings":0,"cell_chars":16384,"cell_head_chars":4096},"cells_cut":0,"cells_raw":0,"read":"whole","date_system":"1900"}

{"sheet":"BLANK PRICE fcx_tw_20_03","index":0,"n_rows":27,"n_cols":7,"rows_kept":27,"cut":false,"hidden":false,"merged":[[21,1,21,6],[22,1,22,6],[23,1,23,6],[0,0,0,6],[1,0,1,6],[2,0,2,6],[3,0,3,2],[3,4,3,6],[19,3,19,6]]}
["    BHARAT HEAVY ELECTRICAL LIMITED , JHANSI              "]
["  PRICE BID"]
["Name of work - Kitchen Upgradation & Refurbishing of furniture of VIP area of Guest House."]
["Tender Enq No-CPR/TW/24/03"]
["Sl. No.","Description of Work","% Allocation (Item-wise)","Unit ","Quantity ","Rate per Unit (in Rs.)","Amount (in Rs.)"]
[1,"Refurbishing of Upholstered Sofa including material, all T&P by completion of following activities as per direction of Engineer-In-charge-\n• Removing of old fabric and foam, springs/coils etc.\n• Strengthen of existing wooden structure of sofa by nailing and use of adhesives.\n• Re-knitting of the inner frame of the sofa with the cotton 'Niwar' tapes.\n• Replacing of Old Sofa Cushion Foam with new cushion foam (Brand of foam –Sleepwell/ Kurlon and 32- density of foam)\n• Reupholstering & refinishing with high-quality leatherette fabric (Colour, design and pattern of fabric will be approved by BHEL authorities.)\n• Polishing of sofa legs with lacquer and shellac Wood Polish.\n• Fixing of new plastic shoes in sofa legs.\n\n",0.29170100646800001,"Per Seat",40,{"$f":"G6/E6","v":0},{"$f":"C6*$G$19","v":0}]
[null,"Refurbishing of double seater wooden Sofa (partially wood & partially Upholstered) including material, all T&P by completion of following activities as per direction of Engineer-In-charge.\n• Removing of old fabric and foam, polish on wood etc.\n• Strengthen of existing wooden structure of sofa by nailing and use of adhesives.\n• Extra placing of ½” thick Cushion foam over old cushion foam (Brand of foam –Sleepwell/ Kurlon and density of foam-32)\n• Reupholstering & refinishing with high-quality leatherette fabric (Colour, design and pattern of fabric will be approved by BHEL authorities.)\n• Finishing of all wooden members of sofa with lacquer and shellac Wood Polish.\n• Fixing of new plastic shoes in sofa legs.\n\n",0.14851443936600001,"Per Seat",20,{"$f":"G7/E7","v":0},{"$f":"C7*$G$19","v":0}]
[null,"Refurbishing of Single seater curved sofa (partially wood & partially Upholstered) including material, all T&P by completion of following activities as per direction of Engineer-In-charge-\n• Removing of old fabric and foam, polish on wood etc.\n• Strengthen of existing wooden structure of sofa by nailing and use of adhesives.\n• Replacing of Old Sofa Cushion Foam with new cushion foam (Brand of foam –Sleepwell/ Kurlon and density of foam-32)\n• Reupholstering & refinishing with high-quality leatherette fabric (Colour, design and pattern of fabric will be approved by BHEL authorities.)\n• Finishing of all wooden members of sofa with lacquer and shellac Wood Polish.\n• Fixing of new plastic shoes in sofa legs.\n",5.0947778526999998E-2,"Per Seat",6,{"$f":"G8/E8","v":0},{"$f":"C8*$G$19","v":0}]
[null,"Refurbishing of Dinning chairs (partially wood & partially Upholstered) including material, all T&P by completion of following activities as per direction of Engineer-In-charge-\n• Removing of old fabric and foam, polish on wood etc.\n• Strengthen of existing wooden structure of sofa by nailing and use of adhesives.\n• Replacing of Old Sofa Cushion Foam with new cushion foam (Brand of foam –Sleepwell/ Kurlon and density of foam-32)\n• Reupholstering & refinishing with high-quality leatherette fabric (Colour, design and pattern of fabric will be approved by BHEL authorities.)\n• Finishing of all wooden members of sofa with lacquer and shellac Wood Polish.\n• Fixing of new plastic shoes in sofa legs.\n",0.12766913913200001,"Per Chair",18,{"$f":"G9/E9","v":0},{"$f":"C9*$G$19","v":0}]
[null,"lacquer and shellac Wood polishing work on old wooden center tables by scrapping of old polish, preparation of surface and 3 coat of finishing polish including material, all T&P  as per direction of Engineer-In-charge.",4.2456482105999997E-2,"Nos.",15,{"$f":"G10/E10","v":0},{"$f":"C10*$G$19","v":0}]
[null,"lacquer and shellac Wood polishing work on old glazed wooden center tables by scrapping of old polish, preparation of surface and 3 coat of finishing polish  including material, all T&P  as per direction of Engineer-In-charge.",1.9979520991000001E-2,"Nos.",10,{"$f":"G11/E11","v":0},{"$f":"C11*$G$19","v":0}]
[null,"lacquer and shellac Wood polishing work on old wooden center dinning tables (Under frame only ) by scrapping of old polish, preparation of surface and 3 coat of finishing polish including material, all T&P  as per direction of Engineer-In-charge.",1.4152160702E-2,"Nos.",1,{"$f":"G12/E12","v":0},{"$f":"C12*$G$19","v":0}]
[null,"Providing & replacement of wooden top laminate of big center dining table with high gloss acrylic  laminate as per direction of Engineer-In-charge.",6.1437027046999999E-2,"Sqft",90,{"$f":"G13/E13","v":0},{"$f":"C13*$G$19","v":0}]
[null,"Top Frame and strengthen of members of  old big center dining table with seasoned teak Wood in required sections  including polish work as per direction of engineer -In-Charge.",1.8039842495E-2,"Cum",0.11,{"$f":"G14/E14","v":0},{"$f":"C14*$G$19","v":0}]
[null,"Providing & Fixing 5 mm thick plyboard on base of furniture as per direction of engineer -In-Charge.",1.3319680661E-2,"Sqft",250,{"$f":"G15/E15","v":0},{"$f":"C15*$G$19","v":0}]
[null,"Providing & fixing auto Clean Filter less Chimney with Motion Sensor 1200 m3/h size -90cm (Brand- Glen , Kaff, IFB Appliances,Kutchina or equivalent)",5.9938562973000001E-2,"Nos.",2,{"$f":"G16/E16","v":0},{"$f":"C16*$G$19","v":0}]
[null,"Providing and placing SS made premium Quality Buffet Food Warmer with Electric Based and Glass Lid, 5 Liter Capacity.",4.7617858361999998E-2,"Nos.",2,{"$f":"G17/E17","v":0},{"$f":"C17*$G$19","v":0}]
[null,"Providing and placing SS made premium Quality Buffet Food Warmer with Electric Based and Glass Lid, 12 Liter Capacity ( with 4 dishes container ).",0.10422650117,"Nos.",2,{"$f":"G18/E18","v":0},{"$f":"C18*$G$19","v":0}]
[null,"Total",{"$f":"SUM(C6:C18)","v":0.99999999999999989}]
[null,"IN WORDS",null,{"$f":"rup(G19)","v":0}]
[null,"Note -GST extra as applicable"]
[null,"1. Bidder has to quote in above unlocked cell only. Item rate shall be calculated automatically. Calculated item rates upto four decimal points may be adjusted w.r.t. gross total amount and it shall be the itemwise final rate for  execution of contract and all other purposes."]
[null,"2. Quoted gross total amount should be considered only if quoted in this excel sheet and print out of this should only be considered for evaluation.  If Price is quoted in any other format other than the Excel Sheet enclosed to the NIT , the offer of the bidder  will be rejected"]
[null,"3.During the execution , the quantity of various items may vary to any extent depending on requirement of work/site and as per discretion of BHEL."]
[]
[]
[null,null,null,"(Signature and Seal of  Contractor  )"]